bitfinex-derivatives/quotes_SOLF0:USTF0_20260211
["timestamp","ask_amount","ask_price","bid_price","bid_amount"]
[1770852025801,11.3498,79.356,79.315,17.02514151]
[1770852026008,13.13038788,79.355,79.315,17.02514151]
[1770852028307,11.3502,79.353,79.315,17.02514151]
[1770852031209,11.3491,79.361,79.321,17.76584866]
[1770852031406,11.3491,79.361,79.32,4.06682376]
[1770852031407,13.60729671,79.359,79.304,17.76584866]
[1770852032014,13.60729671,79.359,79.311,17.76584866]
[1770852032808,11.3502,79.353,79.311,17.76584866]
[1770852033511,11.3511,79.347,79.311,17.76584866]
[1770852035311,11.3517,79.343,79.311,17.76584866]
[1770852035916,13.84935812,79.333,79.293,17.76584866]
[1770852036215,13.84935812,79.329,79.281,17.76584866]
[1770852037520,100.56,79.354,79.267,17.76584866]
[1770852037521,11.3581,79.298,79.267,17.76584866]
[1770852038608,11.3589,79.292,79.267,17.76584866]
[1770852039518,11.3589,79.292,79.255,17.76584866]
[1770852039707,13.15934273,79.285,79.241,17.76584866]
[1770852040210,11.3603,79.283,79.241,17.76584866]
[1770852040517,11.3603,79.283,79.25,21.83267242]
[1770852041714,17.44046714,79.31,79.26,4.06682376]
[1770852042011,17.44046714,79.31,79.261,17.76584866]
[1770852042217,17.44046714,79.31,79.26,4.06682376]
[1770852042218,4.06682376,79.27,79.162,17.76584866]
[1770852042420,13.37274518,79.269,79.221,17.76584866]
[1770852044512,11.3625,79.268,79.221,17.76584866]
[1770852045621,12.89448728,79.265,79.221,17.76584866]
[1770852046410,12.89379922,79.259,79.221,17.76584866]
[1770852046618,4.06682376,79.25,79.209,17.76584866]
[1770852047718,12.98474658,79.251,79.209,17.76584866]
[1770852048116,4.06682376,79.24,79.193,17.76584866]
[1770852048315,11.3671,79.236,79.193,17.76584866]
[1770852048515,11.3671,79.236,79.068,12.6]
[1770852048516,4.06682376,79.26,79.21,4.06682376]
[1770852048715,4.06682376,79.26,79.214,11.3701]
[1770852048921,12.98410552,79.265,79.215,17.76584866]
[1770852049222,12.98410552,79.265,79.219,11.3694]
[1770852049417,12.98410552,79.265,79.22,17.76584866]
[1770852050924,12.98410552,79.265,79.222,16.85855095]
[1770852051721,11.3619,79.272,79.231,16.85855095]
[1770852054425,13.11693834,79.263,79.216,16.85855095]
[1770852055222,105.36,79.302,79.114,177.0914]
[1770852055223,13.11693834,79.265,79.114,177.0914]
[1770852055424,176.8442,79.226,79.041,177.2538]
[1770852055621,10.92357275,79.15,79.06,84.82965811]
[1770852055825,48.73357275,79.17,79.06,84.82965811]
[1770852056133,37.81,79.16,78.993,177.3637]
[1770852056428,37.81,79.16,79.08,10.92357275]
[1770852056617,176.9844,79.163,79.02,10.92357275]
[1770852056618,11.3774,79.163,79.1,10.92357275]
[1770852056816,10.92357275,79.2,79.1,10.92357275]
[1770852057026,11.3753,79.178,79.1,10.92357275]
[1770852057725,11.3776,79.163,79.1,10.92357275]
[1770852057925,11.3776,79.163,79.071,73.72929002]
[1770852058118,10.92357275,79.17,79.071,73.72929002]
[1770852058328,177.0532,79.132,79.071,50.11729002]
[1770852058522,10.92357275,79.15,79.071,50.11729002]
[1770852058523,177.049,79.134,79.071,9.002e-05]
[1770852058828,176.9746,79.167,79.08,10.92357275]
[1770852059025,10.92357275,79.18,79.1,10.92357275]
[1770852059225,145.7,79.198,79.1,10.92357275]
[1770852059433,145.7,79.198,79.08,10.92357275]
[1770852059434,176.9332,79.186,79.11,10.92357275]
[1770852059623,145.7,79.198,79.11,10.92357275]
[1770852060130,12.03396965,79.197,79.11,10.92357275]
[1770852060328,12.03396965,79.196,79.13,10.92357275]
[1770852060533,15.19961883,79.24,79.088,142.2]
[1770852060534,10.92357275,79.24,79.15,10.92357275]
[1770852060823,10.92357275,79.2,79.114,38.1681381]
[1770852061026,12.04571924,79.199,79.114,38.1681381]
[1770852061329,12.04571924,79.198,79.114,38.1681381]
[1770852061523,10.94674191,79.18,79.096,39.28798079]
[1770852061725,12.04571924,79.179,79.096,39.28798079]
[1770852061926,10.94674191,79.16,79.078,39.28798079]
[1770852062228,12.04571924,79.159,79.091,39.28798079]
[1770852062420,10.94674191,79.2,79.111,39.28798079]
[1770852062726,12.0233047,79.199,79.111,39.28798079]
[1770852062932,10.94674191,79.18,79.081,39.31651195]
[1770852063118,12.0233047,79.179,79.081,39.31651195]
[1770852063322,12.0233047,79.179,78.99,177.3684]
[1770852063324,10.94674191,79.09,78.951,81.73134101]
[1770852063524,177.0763,79.122,78.971,82.95925861]
[1770852063525,11.98757908,79.089,78.971,82.95925861]
[1770852063728,11.98757908,79.088,78.991,82.95925861]
[1770852063938,11.98757908,79.087,79.011,82.95925861]
[1770852064226,11.98757908,79.086,79.011,82.95925861]
[1770852064430,2.20163288,79.106,78.98,2.20170252]
[1770852064431,2.20163288,79.106,79.021,82.95925861]
[1770852064621,11.96831892,79.105,79.021,82.95925861]
[1770852064827,11.96831892,79.104,79.021,82.95925861]
[1770852065022,11.96831892,79.103,79.021,82.95925861]
[1770852065223,11.96831892,79.102,79.021,82.95925861]
[1770852065423,11.96831892,79.101,79.021,82.95925861]
[1770852065625,10.94674191,79.09,79.003,81.22218714]
[1770852065825,11.96831892,79.089,79.003,81.22218714]
[1770852066031,11.96831892,79.088,79.003,81.22218714]
[1770852066226,11.3886,79.086,79.003,81.22218714]
[1770852066429,11.96831892,79.085,79.003,81.22218714]
[1770852066625,179.31264234,79.106,78.98,13.14844443]
[1770852066626,11.96831892,79.084,78.982,81.25605819]
[1770852066834,11.96831892,79.083,78.982,81.25605819]
[1770852067026,11.3888,79.084,78.982,81.25605819]
[1770852067027,11.96831892,79.082,78.982,81.25605819]
[1770852067330,11.3888,79.084,78.98,13.14860464]
[1770852067331,11.3899,79.077,79.001,81.25605819]
[1770852068031,146.42,79.081,79.001,81.25605819]
[1770852068235,146.42,79.081,79.011,80.8801991]
[1770852068434,496.58866335,79.1,79.011,80.8801991]
[1770852068638,496.58866335,79.1,79.031,80.91088471]
[1770852070331,11.3854,79.108,79.031,80.91088471]
[1770852070726,10.94674191,79.11,79.031,80.91088471]
[1770852070921,177.1082,79.107,79.031,80.91088471]
[1770852071126,10.94674191,79.09,79.012,80.72061997]
[1770852071536,148.42,79.108,79.021,80.72061997]
[1770852071733,148.42,79.108,79.041,81.1254829]
[1770852072132,11.385,79.111,79.041,81.1254829]
[1770852072334,11.86992576,79.145,79.061,81.1254829]
[1770852072536,498.8270375,79.146,79.02,10.94674191]
[1770852072537,498.8270375,79.146,79.081,81.15546437]
[1770852072733,11.38,79.145,79.081,81.15546437]
[1770852073135,498.8270375,79.146,79.081,81.15546437]
[1770852073337,11.3819,79.132,79.081,81.15546437]
[1770852073639,10.94674191,79.14,79.061,81.18506115]
[1770852074239,11.3863,79.102,79.041,81.18506115]
[1770852075038,11.3842,79.116,79.051,81.1781127]
[1770852076340,11.3863,79.102,79.031,81.20685035]
[1770852076743,148.72,79.117,79.031,81.20685035]
[1770852076930,11.87744543,79.116,79.031,81.20685035]
[1770852077130,11.388,79.09,79.031,81.20685035]
[1770852077438,148.72,79.117,79.031,81.20685035]
[1770852077937,11.88262372,79.116,79.031,81.20685035]
[1770852078143,10.94674191,79.1,79.01,10.94674191]
[1770852078343,160.40262372,79.099,79.01,10.94674191]
[1770852078642,11.3897,79.078,79.01,10.94674191]
[1770852078833,11.88262372,79.098,78.977,141.38]
[1770852079030,177.0486,79.134,78.97,177.4149]
[1770852079031,11.88813321,79.119,79.01,10.94674191]
[1770852079239,11.3885,79.086,79.01,10.94674191]
[1770852079836,11.3883,79.088,79.013,11.399]
[1770852080232,11.3883,79.088,79.014,71.88494695]
[1770852080842,11.3883,79.088,79.014,68.88494695]
[1770852082237,11.3883,79.088,79.015,11.3986]
[1770852082946,11.3883,79.088,79.026,69.33283548]
[1770852083540,11.3898,79.078,79.026,69.33283548]
[1770852083740,10.94674191,79.09,78.99,10.94674191]
[1770852083948,11.92817352,79.089,79.008,69.3569684]
[1770852084142,11.92817352,79.088,79.011,69.3569684]
[1770852084345,11.93758806,79.099,79.011,69.3569684]
[1770852084645,11.93634584,79.098,79.011,69.3569684]
[1770852084840,11.93634584,79.097,79.011,69.3569684]
[1770852085041,11.93634584,79.096,79.011,69.3569684]
[1770852085244,11.94496568,79.095,79.011,69.3569684]
[1770852085449,11.94496568,79.094,79.011,69.3569684]
[1770852085746,148.42,79.106,79.013,69.39134517]
[1770852085747,11.3895,79.08,79.013,69.39134517]
[1770852086741,11.3895,79.08,79.017,69.79630895]
[1770852088244,11.98134882,79.079,79.017,69.79630895]
[1770852088449,11.3897,79.078,79.017,69.79630895]
[1770852088646,11.30295253,79.1,79.02,69.87639961]
[1770852088848,11.30295253,79.1,79.002,141.08]
[1770852088849,11.98455975,79.099,79.031,69.87639961]
[1770852089049,11.3871,79.096,79.031,69.87639961]
[1770852089849,11.3877,79.092,79.037,69.90025253]
[1770852090742,11.3877,79.092,79.04,69.93365917]
[1770852092653,11.389,79.083,79.04,69.93365917]
[1770852094351,9.76913329,79.131,78.956,177.4448]
[1770852094352,11.3902,79.074,79.022,70.13502152]
[1770852095150,11.3925,79.059,79.022,70.13502152]
[1770852095454,11.3925,79.059,79.005,70.44619358]
[1770852095850,11.3925,79.059,79.007,11.3998]
[1770852096043,11.3912,79.068,79.008,70.47014838]
[1770852096954,11.3912,79.068,79.019,11.3981]
[1770852097655,11.3912,79.068,79.019,81.83831925]
[1770852099156,11.3921,79.061,79.019,81.83831925]
[1770852100151,11.3921,79.061,79.019,70.44021925]
[1770852101245,11.3923,79.06,79.019,70.44021925]
[1770852101450,11.30295253,79.086,79.019,70.44021925]
[1770852101651,9.91670138,79.085,79.019,70.44021925]
[1770852101852,9.91670138,79.084,79.019,70.44021925]
[1770852102052,37.81,79.092,79.019,70.44021925]
[1770852102053,9.91670138,79.083,79.019,70.44021925]
[1770852102254,9.91670138,79.082,79.019,70.44021925]
[1770852102449,9.91670138,79.081,79.019,70.44021925]
[1770852102651,9.91670138,79.08,79.019,70.44021925]
[1770852102853,11.3911,79.068,79.021,69.96822632]
[1770852103051,9.91670138,79.067,79.021,69.96822632]
[1770852103249,9.91670138,79.066,79.021,69.96822632]
[1770852103455,9.91670138,79.065,79.021,69.96822632]
[1770852103752,9.91670138,79.064,79.021,69.96822632]
[1770852103956,9.91670138,79.063,79.021,69.96822632]
[1770852104153,11.392,79.062,79.022,11.3976]
[1770852104350,9.934848,79.061,79.022,11.3976]
[1770852104549,11.3905,79.072,79.029,69.97931028]
[1770852104750,9.93572283,79.071,79.029,69.97931028]
[1770852104952,9.93572283,79.07,79.029,69.97931028]
[1770852105252,9.93572283,79.069,79.029,69.97931028]
[1770852105555,9.93572283,79.068,79.029,69.97931028]
[1770852105748,37.81,79.104,79.029,69.97931028]
[1770852105749,11.3923,79.06,79.029,69.97931028]
[1770852105949,9.93572283,79.059,79.029,69.97931028]
[1770852106252,37.81,79.092,79.0,151.12674191]
[1770852106253,9.935158,79.058,79.001,69.99830073]
[1770852106452,9.935158,79.057,79.001,69.99830073]
[1770852106650,9.935158,79.057,79.0,140.18]
[1770852106651,9.935158,79.056,79.015,70.26427179]
[1770852106850,9.935158,79.055,79.015,70.26427179]
[1770852107045,9.935158,79.054,79.015,70.26427179]
[1770852107253,9.935158,79.053,79.015,70.26427179]
[1770852107458,9.935158,79.052,79.015,70.26427179]
[1770852107660,9.935158,79.051,79.015,70.26427179]
[1770852107858,11.30295253,79.069,79.0,151.12674191]
[1770852107859,9.935158,79.05,79.021,70.28363137]
[1770852108156,9.935158,79.049,79.021,70.28363137]
[1770852108458,11.3912,79.068,79.021,70.28363137]
[1770852108653,11.30295253,79.075,79.021,70.28363137]
[1770852109051,11.30295253,79.076,79.021,70.28363137]
[1770852109350,11.30295253,79.077,79.021,70.28363137]
[1770852110057,11.30295253,79.079,79.021,70.28363137]
[1770852110254,11.30295253,79.08,79.021,70.28363137]
[1770852110649,11.3916,79.065,79.021,70.28363137]
[1770852110850,11.30295253,79.068,79.007,65.41607696]
[1770852111057,11.30295253,79.07,79.007,65.41607696]
[1770852111455,11.30295253,79.072,79.007,65.41607696]
[1770852111856,11.3928,79.057,79.015,65.45140371]
[1770852112561,11.3917,79.064,79.019,65.45140371]
[1770852113352,11.3917,79.064,79.025,11.3972]
[1770852113557,11.3926,79.058,79.019,65.45140371]
[1770852114464,11.30295253,79.077,79.019,65.45140371]
[1770852114660,11.30295253,79.072,79.019,65.45140371]
[1770852115260,11.3939,79.049,79.019,65.45140371]
[1770852118964,11.30295253,79.077,79.003,65.46435428]
[1770852119159,11.30295253,79.054,78.989,65.46435428]
[1770852119357,11.30295253,79.055,78.989,65.46435428]
[1770852119567,11.3959,79.035,78.989,76.86685428]
[1770852120264,11.3948,79.043,78.996,65.48170057]
[1770852120667,11.30295253,79.068,79.005,76.88023504]
[1770852120862,9.73458188,79.067,79.005,76.88023504]
[1770852121066,9.73458188,79.066,79.005,76.88023504]
[1770852121267,9.73458188,79.065,79.005,76.88023504]
[1770852121468,9.73458188,79.064,79.005,76.88023504]
[1770852121771,11.394,79.048,79.005,76.88023504]
[1770852122069,9.73862715,79.047,79.005,65.48013504]
[1770852122256,9.73862715,79.046,79.005,65.48013504]
[1770852122457,11.396,79.035,78.993,11.4018]
[1770852122660,22.7829,79.066,78.991,65.4969858]
[1770852122867,9.73501995,79.065,78.991,65.4969858]
[1770852123167,9.73501995,79.064,78.991,65.4969858]
[1770852123469,9.73501995,79.063,78.991,65.4969858]
[1770852123678,9.73501995,79.062,78.991,65.4969858]
[1770852123871,9.73501995,79.061,78.991,65.4969858]
[1770852124166,22.7829,79.066,78.991,65.4969858]
[1770852124167,9.73501995,79.06,78.991,65.4969858]
[1770852124367,9.73501995,79.059,78.991,65.4969858]
[1770852124558,9.73501995,79.058,78.991,65.4969858]
[1770852124758,9.73501995,79.057,78.991,65.4969858]
[1770852124963,9.73501995,79.056,78.991,65.4969858]
[1770852125166,11.3952,79.04,79.0,65.6543471]
[1770852126569,10.97904308,79.07,79.005,65.62353266]
[1770852126766,9.72777109,79.069,79.005,65.62353266]
[1770852126964,9.72777109,79.068,79.005,65.62353266]
[1770852127164,9.72777109,79.067,79.005,65.62353266]
[1770852127364,9.72777109,79.066,79.005,65.62353266]
[1770852127564,9.72777109,79.065,79.005,65.62353266]
[1770852127768,11.3956,79.038,79.005,65.62353266]
[1770852127968,22.782,79.069,79.005,65.62353266]
[1770852128170,9.72653584,79.068,79.005,65.62353266]
[1770852128371,11.3981,79.02,78.975,139.56]
[1770852128568,10.97904308,79.05,78.97,10.97904308]
[1770852128872,11.4007,79.002,78.963,11.4061]
[1770852129070,11.30295253,79.051,78.95,19.17098802]
[1770852129071,10.97904308,79.03,78.95,19.17098802]
[1770852129271,9.71603101,79.029,78.95,8.19194494]
[1770852129471,9.71603101,79.028,78.961,11.4065]
[1770852129666,9.71603101,79.027,78.95,19.17098802]
[1770852129869,11.4013,78.998,78.95,19.17098802]
[1770852130273,11.4013,78.998,78.89,12.6]
[1770852130274,37.99,79.043,78.752,4.0527445]
[1770852130275,177.6676,78.858,78.752,4.0527445]
[1770852130571,10.97904308,78.93,78.81,10.97904308]
[1770852130770,15.37744055,78.956,78.81,10.97904308]
[1770852130771,9.69427514,78.929,78.81,100.98]
[1770852130964,9.69930849,78.956,78.86,10.97904308]
[1770852131167,9.69930849,78.956,78.84,10.97904308]
[1770852131168,9.67278056,78.955,78.9,10.97904308]
[1770852131366,10.97904308,78.99,78.88,10.97904308]
[1770852131567,11.4085,78.948,78.88,10.97904308]
[1770852131773,11.01138289,78.947,78.86,10.97904308]
[1770852131980,11.01138289,78.946,78.839,2.20526031]
[1770852132278,11.4112,78.929,78.85,10.97904308]
[1770852132470,11.4112,78.929,78.871,42.59022037]
[1770852132873,11.4094,78.942,78.871,42.59022037]
[1770852133072,10.63148924,78.941,78.871,42.59022037]
[1770852133273,10.60797822,78.94,78.86,10.97904308]
[1770852133474,10.60797822,78.94,78.851,39.69721751]
[1770852133475,11.4158,78.898,78.851,39.69721751]
[1770852133674,10.60797822,78.938,78.861,39.71439414]
[1770852133965,11.4134,78.914,78.861,39.71439414]
[1770852134779,11.4115,78.927,78.861,39.71439414]
[1770852134981,10.60716744,78.945,78.861,39.71439414]
[1770852135177,177.4451,78.957,78.861,39.71439414]
[1770852135178,11.4132,78.915,78.861,39.71439414]
[1770852135475,10.60716744,78.943,78.88,10.97904308]
[1770852135676,177.3873,78.983,78.88,10.97904308]
[1770852135677,10.57122531,78.959,78.881,41.0076803]
[1770852135978,10.57122531,78.979,78.881,41.0076803]
[1770852136171,10.57122531,78.978,78.881,41.0076803]
[1770852136376,10.57122531,78.977,78.881,41.0076803]
[1770852136572,11.4095,78.941,78.881,41.0076803]
[1770852136973,177.4204,78.968,78.881,41.0076803]
[1770852137177,11.4082,78.95,78.901,42.05115528]
[1770852137477,177.3788,78.987,78.911,42.05115528]
[1770852137777,177.3687,78.991,78.911,42.05115528]
[1770852137973,177.4245,78.966,78.835,37.99]
[1770852138173,10.97904308,78.98,78.89,10.97904308]
[1770852138374,177.3647,78.993,78.891,101.06]
[1770852138572,11.4075,78.954,78.891,101.06]
[1770852139071,11.4057,78.967,78.91,10.97904308]
[1770852139681,11.4074,78.956,78.91,10.97904308]
[1770852140075,11.4074,78.956,78.911,32.35446224]
[1770852140277,10.55883572,79.006,78.911,32.35446224]
[1770852140482,11.4029,78.986,78.931,32.35446224]
[1770852140678,177.2778,79.032,78.95,10.97904308]
[1770852140884,10.97904308,79.04,78.951,32.07993692]
[1770852141477,10.97904308,79.04,78.95,112.03904308]
[1770852141478,9.68078175,79.026,78.95,10.97904308]
[1770852142576,11.4021,78.993,78.95,10.97904308]
[1770852142774,9.68078175,79.026,78.95,10.97904308]
[1770852143582,9.68078175,79.026,78.951,25.29970876]
[1770852143985,25.53729616,79.024,78.951,25.29970876]
[1770852144286,25.53729616,79.04,78.971,25.29970876]
[1770852144475,11.4007,79.002,78.971,25.29970876]
[1770852145879,25.53729616,79.026,78.95,10.97904308]
[1770852146580,25.53729616,79.026,78.943,138.7]
[1770852146581,25.53729616,79.026,78.97,10.97904308]
[1770852147180,11.4018,78.994,78.97,10.97904308]
[1770852147775,11.4018,78.994,78.951,26.2989055]
[1770852148681,11.4018,78.994,78.95,10.97904308]
[1770852148682,11.4018,78.994,78.953,26.2989055]
[1770852149186,25.53729616,79.026,78.97,10.97904308]
[1770852149580,25.53729616,79.026,78.971,26.2989055]
[1770852150091,25.53729616,79.026,78.971,6.0052055]
[1770852152390,25.53729616,79.026,78.972,138.12]
[1770852153881,11.4011,78.999,78.972,138.12]
[1770852154085,26.39350459,79.016,78.97,105.7844]
[1770852154284,11.4051,78.971,78.97,6.2352]
[1770852154479,177.3684,78.991,78.93,4.308e-05]
[1770852154685,177.3684,78.991,78.886,166.04547036]
[1770852154686,34.48153779,78.987,78.931,138.34]
[1770852154878,34.48153779,78.987,78.932,138.34]
[1770852155784,34.48153779,78.987,78.933,115.6721]
[1770852158080,34.48153779,78.987,78.92,10.97904308]
[1770852158285,34.48153779,78.987,78.934,138.62]
[1770852159389,34.48153779,78.987,78.935,138.7]
[1770852160492,34.48153779,78.987,78.936,138.88]
[1770852160690,34.48153779,78.987,78.92,10.97904308]
[1770852160879,34.48153779,78.987,78.937,138.86]
[1770852161693,34.48153779,78.987,78.938,138.94]
[1770852162483,34.48153779,78.987,78.939,139.08]
[1770852163588,22.8014,79.002,78.94,10.97904308]
[1770852164992,22.8014,79.002,78.941,139.2]
[1770852165793,11.4033,78.984,78.941,139.2]
[1770852165996,73.77228407,79.004,78.941,139.2]
[1770852167793,73.77228407,79.004,78.94,10.97904308]
[1770852167794,79.53211591,79.021,78.94,10.97904308]
[1770852167999,10.63618543,79.02,78.941,139.58]
[1770852168295,10.63618543,79.019,78.941,139.58]
[1770852168486,11.4033,78.984,78.941,139.58]
[1770852171399,11.4022,78.992,78.941,139.58]
[1770852174100,11.4022,78.992,78.96,10.97904308]
[1770852174506,79.53211591,79.02,78.96,10.97904308]
[1770852175701,11.4008,79.001,78.96,10.97904308]
[1770852178009,11.4027,78.988,78.92,37.99]
[1770852178211,79.29175242,78.992,78.92,10.97904308]
[1770852178406,79.29175242,78.992,78.921,139.7]
[1770852178706,79.29066092,78.975,78.922,140.3]
[1770852179096,11.4069,78.959,78.922,140.3]
[1770852179710,11.4058,78.967,78.92,10.97904308]
[1770852179897,11.4058,78.967,78.921,140.5]
[1770852180410,11.4045,78.976,78.921,140.5]
[1770852180705,79.26489754,78.99,78.92,10.97904308]
[1770852180908,80.03691296,78.988,78.92,10.97904308]
[1770852181212,80.03691296,78.986,78.92,10.97904308]
[1770852181511,80.03691296,78.984,78.921,140.56]
[1770852181807,90.67774118,78.983,78.922,140.54]
[1770852182002,80.01463361,78.983,78.922,140.54]
[1770852182203,11.4052,78.971,78.922,140.54]
[1770852184410,11.4038,78.98,78.923,140.94]
[1770852185110,10.70049897,78.979,78.923,140.94]
[1770852185311,11.4038,78.98,78.923,140.94]
[1770852185506,10.70034115,78.979,78.923,140.94]
[1770852185711,11.4038,78.98,78.923,140.94]
[1770852185910,10.69858595,78.979,78.923,140.94]
[1770852186212,11.4038,78.98,78.923,140.94]
[1770852187509,11.4024,78.99,78.94,10.99851105]
[1770852187814,11.4024,78.99,78.941,141.46]
[1770852196119,81.3570128,78.988,78.92,10.99851105]
[1770852196323,81.3570128,78.986,78.921,142.66]
[1770852196621,81.34700067,78.978,78.921,142.66]
[1770852196815,11.4041,78.979,78.921,142.66]
[1770852198716,81.34700067,78.994,78.94,10.99851105]
[1770852199322,11.4008,79.001,78.94,10.99851105]
[1770852199818,11.4022,78.992,78.93,10.99851105]
[1770852200017,11.4022,78.992,78.931,142.78]
[1770852205723,80.88370025,79.0,78.95,10.99851105]
[1770852205724,92.28470025,79.0,78.95,10.99851105]
[1770852205924,92.28470025,79.0,78.951,105.5]
[1770852206226,92.28470025,79.0,78.95,10.99851105]
[1770852206227,80.22542291,79.011,78.95,10.99851105]
[1770852206531,80.22542291,79.009,78.951,105.1]
[1770852206925,80.22542291,79.009,78.97,4.10244363]
[1770852207732,11.40433344,79.036,78.97,4.10244363]
[1770852207929,11.40433344,79.036,78.951,105.1]
[1770852207930,90.93411654,79.035,78.99,4.10244363]
[1770852208233,80.23192553,79.029,78.991,143.46]
[1770852208424,80.23192553,79.027,78.992,143.46]
[1770852208730,80.38009232,79.025,78.992,143.46]
[1770852208929,91.77779232,79.023,78.992,143.46]
[1770852209125,80.38009232,79.021,78.992,143.46]
[1770852211036,80.51043708,79.018,78.993,143.9]
[1770852211226,80.51043708,79.018,78.994,143.84]
[1770852215532,91.90883708,79.018,78.994,143.84]
[1770852217844,11.3991,79.013,78.98,4.10244363]
[1770852218039,11.3991,79.013,78.981,145.04]
[1770852218240,80.51043708,79.018,78.981,145.04]
[1770852218939,80.51043708,79.018,78.981,179.91655023]
[1770852219641,11.3985,79.017,78.981,179.91655023]
[1770852220646,11.3993,79.011,78.981,179.91655023]
[1770852220850,80.51043708,79.018,78.98,4.10244363]
[1770852221052,80.51043708,79.018,78.981,145.62]
[1770852221955,11.4005,79.003,78.981,145.62]
[1770852222458,11.4014,78.997,78.981,145.62]
[1770852222756,7.29895638,78.997,78.981,145.62]
[1770852223252,18.30107837,79.032,78.991,34.87655023]
[1770852223459,18.30107837,79.029,78.992,146.06]
[1770852223652,10.68149358,79.028,78.993,101.0]
[1770852223858,18.26781241,79.026,78.993,101.0]
[1770852224158,10.68109271,79.025,78.994,146.16]
[1770852224348,18.51829884,79.023,78.994,146.16]
[1770852225158,11.3999,79.008,78.994,146.16]
[1770852225858,8.34276455,79.05,78.994,146.16]
[1770852225859,19.21724078,79.036,78.994,146.16]
[1770852226055,10.67973414,79.035,79.0,4.10244363]
[1770852226356,19.21724078,79.036,78.995,34.87655023]
[1770852226552,10.68124743,79.035,78.995,34.87655023]
[1770852226753,19.21724078,79.036,78.995,34.87655023]
[1770852226951,10.68125167,79.035,78.995,34.87655023]
[1770852227158,19.21724078,79.036,78.995,34.87655023]
[1770852227350,10.68143422,79.035,78.995,34.87655023]
[1770852227551,19.21724078,79.036,78.995,34.87655023]
[1770852227754,11.3982,79.019,78.996,146.88]
[1770852228550,11.3982,79.019,78.902,166.04547036]
[1770852228551,32.17243581,79.019,78.965,34.87655023]
[1770852228760,10.67983125,79.018,78.97,4.10244363]
[1770852228959,10.68046303,79.017,78.97,4.10244363]
[1770852229156,4.10244363,79.02,78.97,4.10244363]
[1770852229360,10.68046367,79.019,78.967,65.97418228]
[1770852229563,10.68046367,79.018,78.968,147.16]
[1770852229763,4.10244363,79.01,78.968,147.16]
[1770852229962,10.68046367,79.009,78.968,147.16]
[1770852230156,10.68046367,79.008,78.968,147.16]
[1770852230357,22.7966,79.019,78.968,147.16]
[1770852230358,10.68046367,79.007,78.968,147.16]
[1770852230557,22.7966,79.019,78.968,147.16]
[1770852230760,10.68384759,79.018,78.968,147.16]
[1770852230960,10.68384759,79.017,78.969,66.52760557]
[1770852231163,10.68384759,79.016,78.969,66.52760557]
[1770852231359,10.68384759,79.015,78.97,4.10244363]
[1770852231560,10.68384759,79.014,78.97,4.10244363]
[1770852231764,11.4013,78.998,78.97,4.10244363]
[1770852231962,22.7966,79.019,78.97,70.64600382]
[1770852232265,10.68761173,79.018,78.97,70.64600382]
[1770852232566,10.68761173,79.017,78.97,70.64600382]
[1770852232764,10.68761173,79.016,78.97,70.64600382]
[1770852232967,11.4001,79.006,78.98,4.10244363]
[1770852233166,11.4001,79.006,78.981,148.22]
[1770852234769,11.4009,79.001,78.981,148.22]
[1770852235865,22.7909,79.039,78.982,66.55671848]
[1770852236069,10.69731184,79.038,78.982,66.55671848]
[1770852236266,10.69731184,79.037,78.982,66.55671848]
[1770852236461,10.69731184,79.036,78.982,66.55671848]
[1770852236659,10.69731184,79.035,78.982,66.55671848]
[1770852236862,10.69731184,79.034,78.982,66.55671848]
[1770852237058,4.10244363,79.03,78.982,66.55671848]
[1770852237268,10.69731184,79.029,78.982,66.55671848]
[1770852237461,10.69731184,79.028,78.981,148.22]
[1770852237768,10.69731184,79.027,78.981,148.22]
[1770852238067,10.69731184,79.026,78.99,4.10244363]
[1770852238365,10.69731184,79.025,78.99,4.10244363]
[1770852238566,10.69731184,79.024,78.99,4.10244363]
[1770852238761,10.69731184,79.023,78.991,60.77638329]
[1770852238965,10.69731184,79.022,78.991,60.77638329]
[1770852239168,11.3998,79.008,78.991,60.77638329]
[1770852240169,22.7909,79.039,78.993,60.79085489]
[1770852240368,11.40433344,79.069,79.02,4.10244363]
[1770852240672,11.40433344,79.076,79.03,4.10244363]
[1770852241464,22.7805,79.075,79.03,4.363e-05]
[1770852241769,22.7805,79.075,79.02,4.10244363]
[1770852242068,22.7805,79.075,79.021,150.48]
[1770852242268,22.7805,79.075,79.022,150.5]
[1770852242971,22.7805,79.075,79.03,4.363e-05]
[1770852244874,6.79403718,79.064,79.03,4.09669301]